[Event "Titled Tuesday Blitz December 20 Early 2022"]
[White "GuessChess_game"]
[Black "Patricks, Anastasia"]
[BlackFideId "7101929"]
[WhiteElo "2424"]
[BlackElo "1778"]
[Result "0-1"]
[Round "03"]
[TimeControl "180+2"]
[Date "2022.12.20"]
[WhiteClock "0:00:05"]
[BlackClock "0:00:55"]

1. d4 {[%clk 0:02:55]}  g6 {[%clk 0:03:00]} 2. e4 {[%clk 0:02:53]}  Bg7 {[%clk 0:03:00]} 3. Nc3 {[%clk 0:02:52]}  c6 {[%clk 0:03:01]} 4. Nf3 {[%clk 0:02:51]}  d5 {[%clk 0:03:01]} 5. h3 {[%clk 0:02:51]}  dxe4 {[%clk 0:03:02]} 6. Nxe4 {[%clk 0:02:51]}  Nf6 {[%clk 0:03:03]} 7. Nxf6+ {[%clk 0:02:43]}  exf6 {[%clk 0:03:04]} 8. Bc4 {[%clk 0:02:34]}  O-O {[%clk 0:03:05]} 9. O-O {[%clk 0:02:34]}  a5 {[%clk 0:03:05]} 10. c3 {[%clk 0:02:33]}  Na6 {[%clk 0:03:05]} 11. Bf4 {[%clk 0:02:30]}  Nc7 {[%clk 0:03:06]} 12. Re1 {[%clk 0:02:29]}  Nd5 {[%clk 0:03:06]} 13. Bg3 {[%clk 0:02:29]}  Be6 {[%clk 0:03:06]} 14. Bf1 {[%clk 0:02:25]}  Re8 {[%clk 0:03:05]} 15. Qd2 {[%clk 0:02:21]}  Qd7 {[%clk 0:02:55]} 16. c4 {[%clk 0:02:20]}  Ne7 {[%clk 0:02:54]} 17. Rad1 {[%clk 0:02:17]}  Red8 {[%clk 0:02:42]} 18. b3 {[%clk 0:02:07]}  Bf8 {[%clk 0:02:22]} 19. a4 {[%clk 0:02:06]}  Nf5 {[%clk 0:02:22]} 20. Qb2 {[%clk 0:01:31]}  Bb4 {[%clk 0:02:15]} 21. Re2 {[%clk 0:01:29]}  Nxg3 {[%clk 0:02:05]} 22. fxg3 {[%clk 0:01:30]}  Qc7 {[%clk 0:02:06]} 23. g4 {[%clk 0:01:26]}  Re8 {[%clk 0:01:45]} 24. g5 {[%clk 0:01:24]}  fxg5 {[%clk 0:01:36]} 25. Nxg5 {[%clk 0:01:24]}  Bf5 {[%clk 0:01:36]} 26. g4 {[%clk 0:00:33]}  Qf4 {[%clk 0:01:19]} 27. Qc1 {[%clk 0:00:20]}  Qxc1 {[%clk 0:00:58]} 28. Rxc1 {[%clk 0:00:21]}  Bd7 {[%clk 0:00:59]} 29. Ne4 {[%clk 0:00:17]}  Kg7 {[%clk 0:00:59]} 30. Nc5 {[%clk 0:00:15]}  Rxe2 {[%clk 0:00:55]} 31. Bxe2 {[%clk 0:00:15]}  Re8 {[%clk 0:00:55]} 32. Kf2 {[%clk 0:00:11]}  Bc8 {[%clk 0:00:56]} 33. Nd3 {[%clk 0:00:10]}  Bd2 {[%clk 0:00:56]} 34. Rd1 {[%clk 0:00:09]}  Be3+ {[%clk 0:00:57]} 35. Kg2 {[%clk 0:00:05]}  Bxd4 {[%clk 0:00:58]} 36. Bf3 {[%clk 0:00:05]}  Re3 {[%clk 0:00:55]} 0-1


[Site "https://www.chess.com"]

[Event "Titled Tuesday Blitz December 20 Early 2022"]
[White "HackingKid98"]
[Black "Felix-Rose"]
[WhiteElo "2488"]
[BlackElo "2299"]
[Result "1-0"]
[Round "03"]
[TimeControl "180+2"]
[Date "2022.12.20"]
[WhiteClock "0:02:00"]
[BlackClock "0:00:01"]

1. g3 {[%clk 0:02:54]}  d5 {[%clk 0:02:59]} 2. Nf3 {[%clk 0:02:53]}  Nd7 {[%clk 0:02:58]} 3. d4 {[%clk 0:02:53]}  Nb6 {[%clk 0:02:58]} 4. Bg2 {[%clk 0:02:52]}  Nf6 {[%clk 0:02:58]} 5. O-O {[%clk 0:02:52]}  h6 {[%clk 0:02:58]} 6. Nbd2 {[%clk 0:02:48]}  Bf5 {[%clk 0:02:58]} 7. Re1 {[%clk 0:02:49]}  e6 {[%clk 0:02:58]} 8. c3 {[%clk 0:02:47]}  Bd6 {[%clk 0:02:56]} 9. Nh4 {[%clk 0:02:47]}  Bh7 {[%clk 0:02:57]} 10. e4 {[%clk 0:02:48]}  dxe4 {[%clk 0:02:56]} 11. Nxe4 {[%clk 0:02:49]}  Bxe4 {[%clk 0:02:53]} 12. Bxe4 {[%clk 0:02:50]}  Nxe4 {[%clk 0:02:52]} 13. Rxe4 {[%clk 0:02:50]}  O-O {[%clk 0:02:50]} 14. Qe2 {[%clk 0:02:47]}  c5 {[%clk 0:02:46]} 15. Be3 {[%clk 0:02:44]}  Rc8 {[%clk 0:02:37]} 16. Rg4 {[%clk 0:02:38]}  Qf6 {[%clk 0:00:24]} 17. Rd1 {[%clk 0:02:22]}  Nd5 {[%clk 0:00:21]} 18. Bc1 {[%clk 0:02:17]}  cxd4 {[%clk 0:00:19]} 19. Rgxd4 {[%clk 0:02:15]}  Be5 {[%clk 0:00:14]} 20. R4d3 {[%clk 0:02:15]}  Rfd8 {[%clk 0:00:13]} 21. Nf3 {[%clk 0:02:15]}  Bb8 {[%clk 0:00:13]} 22. Nd4 {[%clk 0:02:15]}  Ne7 {[%clk 0:00:12]} 23. Nb5 {[%clk 0:02:14]}  Nc6 {[%clk 0:00:12]} 24. Be3 {[%clk 0:02:11]}  a6 {[%clk 0:00:12]} 25. Nd4 {[%clk 0:02:11]}  Ne5 {[%clk 0:00:07]} 26. R3d2 {[%clk 0:02:11]}  Ba7 {[%clk 0:00:06]} 27. Nc2 {[%clk 0:02:09]}  Rxd2 {[%clk 0:00:06]} 28. Bxd2 {[%clk 0:02:07]}  Nf3+ {[%clk 0:00:04]} 29. Kg2 {[%clk 0:02:07]}  Nxd2 {[%clk 0:00:04]} 30. Rxd2 {[%clk 0:02:08]}  Rd8 {[%clk 0:00:04]} 31. Rxd8+ {[%clk 0:02:03]}  Qxd8 {[%clk 0:00:05]} 32. Nb4 {[%clk 0:02:02]}  a5 {[%clk 0:00:05]} 33. Nd3 {[%clk 0:02:02]}  Qd5+ {[%clk 0:00:05]} 34. Qf3 {[%clk 0:02:02]}  Qxa2 {[%clk 0:00:05]} 35. Qxb7 {[%clk 0:02:01]}  Qd5+ {[%clk 0:00:01]} 36. Qxd5 {[%clk 0:02:01]}  exd5 {[%clk 0:00:02]} 37. Kf3 {[%clk 0:02:02]}  a4 {[%clk 0:00:02]} 38. Nf4 {[%clk 0:02:00]}  d4 {[%clk 0:00:02]} 39. c4 {[%clk 0:02:01]}  g5 {[%clk 0:00:01]} 40. Nd3 {[%clk 0:02:00]} 1-0


[Site "https://www.chess.com"]

[Event "Titled Tuesday Blitz December 20 Early 2022"]
[White "Hanfin, Zahra Chumaira Amelia"]
[Black "Balasch Peries, Eduard"]
[WhiteFideId "7111983"]
[BlackFideId "32067372"]
[WhiteElo "2062"]
[BlackElo "1671"]
[Result "0-1"]
[Round "03"]
[TimeControl "180+2"]
[Date "2022.12.20"]
[WhiteClock "0:00:12"]
[BlackClock "0:00:39"]

1. d4 {[%clk 0:03:00]}  d5 {[%clk 0:02:56]} 2. Bf4 {[%clk 0:02:59]}  Nf6 {[%clk 0:02:56]} 3. e3 {[%clk 0:02:59]}  c5 {[%clk 0:02:57]} 4. Nf3 {[%clk 0:02:59]}  Nc6 {[%clk 0:02:57]} 5. dxc5 {[%clk 0:02:53]}  Qa5+ {[%clk 0:02:54]} 6. Nbd2 {[%clk 0:02:46]}  Qxc5 {[%clk 0:02:54]} 7. c4 {[%clk 0:02:38]}  d4 {[%clk 0:02:50]} 8. exd4 {[%clk 0:02:31]}  Nxd4 {[%clk 0:02:48]} 9. Be3 {[%clk 0:02:28]}  Nxf3+ {[%clk 0:02:42]} 10. Qxf3 {[%clk 0:02:29]}  Qc6 {[%clk 0:02:34]} 11. Qxc6+ {[%clk 0:02:26]}  bxc6 {[%clk 0:02:33]} 12. Be2 {[%clk 0:02:26]}  e5 {[%clk 0:02:33]} 13. Bf3 {[%clk 0:02:25]}  Bd7 {[%clk 0:02:31]} 14. O-O {[%clk 0:02:22]}  Bb4 {[%clk 0:02:15]} 15. Rfd1 {[%clk 0:02:16]}  O-O {[%clk 0:02:00]} 16. a3 {[%clk 0:02:15]}  Bxd2 {[%clk 0:01:58]} 17. Rxd2 {[%clk 0:02:16]}  a5 {[%clk 0:01:52]} 18. Bg5 {[%clk 0:02:10]}  e4 {[%clk 0:01:49]} 19. Be2 {[%clk 0:02:09]}  Be6 {[%clk 0:01:45]} 20. Bxf6 {[%clk 0:02:01]}  gxf6 {[%clk 0:01:45]} 21. Rb1 {[%clk 0:01:54]}  a4 {[%clk 0:01:43]} 22. c5 {[%clk 0:01:44]}  Rfd8 {[%clk 0:01:42]} 23. Rbd1 {[%clk 0:01:42]}  Rxd2 {[%clk 0:01:41]} 24. Rxd2 {[%clk 0:01:43]}  Bd5 {[%clk 0:01:41]} 25. Bd1 {[%clk 0:01:37]}  Ra5 {[%clk 0:01:40]} 26. Kf1 {[%clk 0:01:30]}  f5 {[%clk 0:01:34]} 27. g3 {[%clk 0:01:26]}  Kg7 {[%clk 0:01:34]} 28. Ke2 {[%clk 0:01:22]}  Kf6 {[%clk 0:01:34]} 29. Ke3 {[%clk 0:01:22]}  Ke5 {[%clk 0:01:35]} 30. Rd4 {[%clk 0:01:17]}  Rxc5 {[%clk 0:01:28]} 31. Bxa4 {[%clk 0:01:13]}  Rc1 {[%clk 0:01:24]} 32. Rd1 {[%clk 0:01:03]}  Rc4 {[%clk 0:01:14]} 33. b3 {[%clk 0:00:44]}  Rc3+ {[%clk 0:01:09]} 34. Kd2 {[%clk 0:00:42]}  Rf3 {[%clk 0:01:08]} 35. Rc1 {[%clk 0:00:32]}  Rxf2+ {[%clk 0:01:07]} 36. Ke3 {[%clk 0:00:28]}  Rxh2 {[%clk 0:01:05]} 37. Bxc6 {[%clk 0:00:28]}  Rg2 {[%clk 0:00:58]} 38. Bxd5 {[%clk 0:00:20]}  Rxg3+ {[%clk 0:00:57]} 39. Kf2 {[%clk 0:00:20]}  Rf3+ {[%clk 0:00:57]} 40. Ke2 {[%clk 0:00:20]}  Kxd5 {[%clk 0:00:57]} 41. Rb1 {[%clk 0:00:18]}  Rc3 {[%clk 0:00:54]} 42. a4 {[%clk 0:00:17]}  f4 {[%clk 0:00:53]} 43. a5 {[%clk 0:00:17]}  f3+ {[%clk 0:00:51]} 44. Kf2 {[%clk 0:00:17]}  Kc6 {[%clk 0:00:50]} 45. b4 {[%clk 0:00:16]}  Kb5 {[%clk 0:00:50]} 46. Re1 {[%clk 0:00:16]}  f5 {[%clk 0:00:49]} 47. Rd1 {[%clk 0:00:15]}  f4 {[%clk 0:00:42]} 48. Rd4 {[%clk 0:00:13]}  Rc2+ {[%clk 0:00:41]} 49. Ke1 {[%clk 0:00:12]}  e3 {[%clk 0:00:40]} 50. Rxf4 {[%clk 0:00:12]}  Rc1# {[%clk 0:00:39]} 0-1


[Site "https://www.chess.com"]

[Event "Titled Tuesday Blitz December 20 Early 2022"]
[White "Hansch, Karsten"]
[Black "Betta, Yanis"]
[WhiteFideId "24692239"]
[BlackFideId "36032972"]
[WhiteElo "2248"]
[BlackElo "2452"]
[Result "1-0"]
[Round "03"]
[TimeControl "180+2"]
[Date "2022.12.20"]
[WhiteClock "0:01:18"]
[BlackClock "0:02:34"]

1. e4 {[%clk 0:03:00]}  e5 {[%clk 0:02:59]} 2. Nf3 {[%clk 0:03:00]}  Nf6 {[%clk 0:02:59]} 3. Bc4 {[%clk 0:03:00]}  Bc5 {[%clk 0:02:57]} 4. Nxe5 {[%clk 0:02:55]}  O-O {[%clk 0:02:58]} 5. d4 {[%clk 0:02:55]}  Bb6 {[%clk 0:02:54]} 6. Nxf7 {[%clk 0:02:55]}  Rxf7 {[%clk 0:02:54]} 7. Bxf7+ {[%clk 0:02:55]}  Kxf7 {[%clk 0:02:55]} 8. e5 {[%clk 0:02:55]}  Ne8 {[%clk 0:02:51]} 9. Qh5+ {[%clk 0:02:51]}  g6 {[%clk 0:02:51]} 10. Qxh7+ {[%clk 0:02:43]}  Ng7 {[%clk 0:02:51]} 11. c3 {[%clk 0:02:29]}  Nc6 {[%clk 0:02:49]} 12. Nd2 {[%clk 0:02:25]}  d5 {[%clk 0:02:46]} 13. Nf3 {[%clk 0:02:22]}  Qg8 {[%clk 0:02:40]} 14. Ng5+ {[%clk 0:02:17]}  Kf8 {[%clk 0:02:40]} 15. Qxg6 {[%clk 0:02:14]}  Ne6 {[%clk 0:02:40]} 16. Nh7+ {[%clk 0:02:01]}  Qxh7 {[%clk 0:02:40]} 17. Qxh7 {[%clk 0:02:01]}  Ne7 {[%clk 0:02:38]} 18. f4 {[%clk 0:01:55]}  Ng7 {[%clk 0:02:37]} 19. O-O {[%clk 0:01:47]}  Bf5 {[%clk 0:02:36]} 20. Qh8+ {[%clk 0:01:37]}  Ng8 {[%clk 0:02:35]} 21. g4 {[%clk 0:01:35]}  Bxg4 {[%clk 0:02:34]} 22. f5 {[%clk 0:01:36]}  c5 {[%clk 0:02:34]} 23. Bh6 {[%clk 0:01:18]} 1-0


[Site "https://www.chess.com"]

[Event "Titled Tuesday Blitz December 20 Early 2022"]
[White "Hasangatin_Ramil"]
[Black "Sam_ChessMood"]
[WhiteElo "2705"]
[BlackElo "2882"]
[Result "1/2-1/2"]
[Round "03"]
[TimeControl "180+2"]
[Date "2022.12.20"]
[WhiteClock "0:00:43"]
[BlackClock "0:00:20"]

1. e4 {[%clk 0:03:00]}  c6 {[%clk 0:02:59]} 2. d4 {[%clk 0:02:59]}  d5 {[%clk 0:03:00]} 3. Nd2 {[%clk 0:02:59]}  dxe4 {[%clk 0:02:56]} 4. Nxe4 {[%clk 0:03:00]}  Nf6 {[%clk 0:02:56]} 5. Nxf6+ {[%clk 0:03:00]}  exf6 {[%clk 0:02:57]} 6. Nf3 {[%clk 0:03:00]}  Bd6 {[%clk 0:02:56]} 7. Bd3 {[%clk 0:03:00]}  O-O {[%clk 0:02:56]} 8. O-O {[%clk 0:02:59]}  Bg4 {[%clk 0:02:56]} 9. h3 {[%clk 0:02:55]}  Bh5 {[%clk 0:02:56]} 10. Bf5 {[%clk 0:02:55]}  Nd7 {[%clk 0:02:48]} 11. Bg4 {[%clk 0:02:55]}  Bxg4 {[%clk 0:02:41]} 12. hxg4 {[%clk 0:02:55]}  Re8 {[%clk 0:02:41]} 13. c4 {[%clk 0:02:46]}  Nf8 {[%clk 0:02:41]} 14. Qd3 {[%clk 0:02:44]}  Ng6 {[%clk 0:02:27]} 15. Be3 {[%clk 0:02:43]}  Qd7 {[%clk 0:02:23]} 16. Qf5 {[%clk 0:02:41]}  Qxf5 {[%clk 0:02:23]} 17. gxf5 {[%clk 0:02:41]}  Ne7 {[%clk 0:02:24]} 18. Nh4 {[%clk 0:02:37]}  a5 {[%clk 0:02:15]} 19. Rfd1 {[%clk 0:02:32]}  b5 {[%clk 0:02:10]} 20. b3 {[%clk 0:02:30]}  a4 {[%clk 0:02:10]} 21. Rac1 {[%clk 0:02:28]}  g5 {[%clk 0:02:05]} 22. fxg6 {[%clk 0:02:26]}  hxg6 {[%clk 0:02:05]} 23. g4 {[%clk 0:02:24]}  axb3 {[%clk 0:01:53]} 24. axb3 {[%clk 0:02:23]}  Ra3 {[%clk 0:01:53]} 25. Rb1 {[%clk 0:02:09]}  Rb8 {[%clk 0:01:41]} 26. Kg2 {[%clk 0:02:06]}  Kg7 {[%clk 0:01:41]} 27. Bc1 {[%clk 0:01:44]}  Ra2 {[%clk 0:01:37]} 28. Be3 {[%clk 0:01:43]}  Rh8 {[%clk 0:01:30]} 29. Rh1 {[%clk 0:01:40]}  Rc2 {[%clk 0:01:20]} 30. Rbc1 {[%clk 0:01:35]}  Rxc1 {[%clk 0:01:20]} 31. Bxc1 {[%clk 0:01:35]}  Rb8 {[%clk 0:01:14]} 32. Be3 {[%clk 0:01:34]}  bxc4 {[%clk 0:01:07]} 33. bxc4 {[%clk 0:01:34]}  Rb2 {[%clk 0:01:07]} 34. Rc1 {[%clk 0:01:20]}  Kf8 {[%clk 0:01:04]} 35. Ra1 {[%clk 0:01:05]}  Ke8 {[%clk 0:01:03]} 36. Ra8+ {[%clk 0:01:02]}  Rb8 {[%clk 0:01:02]} 37. Rxb8+ {[%clk 0:01:02]}  Bxb8 {[%clk 0:01:03]} 38. Kf3 {[%clk 0:01:02]}  Kd7 {[%clk 0:01:04]} 39. Ke4 {[%clk 0:01:02]}  Ke6 {[%clk 0:01:02]} 40. f4 {[%clk 0:01:01]}  f5+ {[%clk 0:00:59]} 41. gxf5+ {[%clk 0:01:02]}  gxf5+ {[%clk 0:00:59]} 42. Kf3 {[%clk 0:00:58]}  Nc8 {[%clk 0:00:54]} 43. Ke2 {[%clk 0:00:53]}  Nd6 {[%clk 0:00:52]} 44. Kd3 {[%clk 0:00:53]}  Ne4 {[%clk 0:00:52]} 45. Nf3 {[%clk 0:00:54]}  f6 {[%clk 0:00:49]} 46. Nd2 {[%clk 0:00:53]}  Ng3 {[%clk 0:00:44]} 47. Nb3 {[%clk 0:00:53]}  Nh5 {[%clk 0:00:43]} 48. Nc5+ {[%clk 0:00:52]}  Ke7 {[%clk 0:00:43]} 49. d5 {[%clk 0:00:47]}  cxd5 {[%clk 0:00:39]} 50. cxd5 {[%clk 0:00:47]}  Bxf4 {[%clk 0:00:30]} 51. Bxf4 {[%clk 0:00:48]}  Nxf4+ {[%clk 0:00:31]} 52. Kd4 {[%clk 0:00:48]}  Ng6 {[%clk 0:00:22]} 53. Nb7 {[%clk 0:00:44]}  Ne5 {[%clk 0:00:20]} 54. Ke3 {[%clk 0:00:42]}  Nc4+ {[%clk 0:00:17]} 55. Kf4 {[%clk 0:00:42]}  Nd6 {[%clk 0:00:18]} 56. Nxd6 {[%clk 0:00:41]}  Kxd6 {[%clk 0:00:19]} 57. Kxf5 {[%clk 0:00:42]}  Kxd5 {[%clk 0:00:20]} 58. Kxf6 {[%clk 0:00:43]} 1/2-1/2


[Site "https://www.chess.com"]

[Event "Titled Tuesday Blitz December 20 Early 2022"]
[White "HashtagChess"]
[Black "Ong, Chong Ghee"]
[BlackFideId "5800145"]
[WhiteElo "1812"]
[BlackElo "2307"]
[Result "0-1"]
[Round "03"]
[TimeControl "180+2"]
[Date "2022.12.20"]
[WhiteClock "0:00:05"]
[BlackClock "0:02:00"]

1. e4 {[%clk 0:03:00]}  e6 {[%clk 0:03:00]} 2. d4 {[%clk 0:02:47]}  d5 {[%clk 0:03:01]} 3. e5 {[%clk 0:02:47]}  c5 {[%clk 0:03:00]} 4. c3 {[%clk 0:02:47]}  Bd7 {[%clk 0:03:01]} 5. Nf3 {[%clk 0:02:41]}  Qb6 {[%clk 0:03:01]} 6. Bd3 {[%clk 0:02:40]}  Bb5 {[%clk 0:03:01]} 7. a4 {[%clk 0:02:26]}  Bxd3 {[%clk 0:03:00]} 8. Qxd3 {[%clk 0:02:27]}  Nc6 {[%clk 0:02:59]} 9. O-O {[%clk 0:02:16]}  Rc8 {[%clk 0:02:54]} 10. Na3 {[%clk 0:01:49]}  cxd4 {[%clk 0:02:53]} 11. cxd4 {[%clk 0:01:20]}  a6 {[%clk 0:02:53]} 12. Rb1 {[%clk 0:00:43]}  Nge7 {[%clk 0:02:52]} 13. Bg5 {[%clk 0:00:30]}  Nf5 {[%clk 0:02:51]} 14. Rfc1 {[%clk 0:00:19]}  Bb4 {[%clk 0:02:40]} 15. Nc2 {[%clk 0:00:18]}  O-O {[%clk 0:02:39]} 16. Nxb4 {[%clk 0:00:17]}  Qxb4 {[%clk 0:02:33]} 17. Qd2 {[%clk 0:00:17]}  Qxd2 {[%clk 0:02:30]} 18. Bxd2 {[%clk 0:00:18]}  Ncxd4 {[%clk 0:02:30]} 19. Nxd4 {[%clk 0:00:18]}  Nxd4 {[%clk 0:02:30]} 20. Rxc8 {[%clk 0:00:17]}  Rxc8 {[%clk 0:02:28]} 21. Be3 {[%clk 0:00:18]}  Nb3 {[%clk 0:02:19]} 22. Kf1 {[%clk 0:00:17]}  Rc4 {[%clk 0:02:17]} 23. f4 {[%clk 0:00:16]}  g6 {[%clk 0:02:16]} 24. g3 {[%clk 0:00:11]}  Rxa4 {[%clk 0:02:13]} 25. Rd1 {[%clk 0:00:09]}  Ra1 {[%clk 0:02:09]} 26. Rxa1 {[%clk 0:00:08]}  Nxa1 {[%clk 0:02:10]} 27. Bb6 {[%clk 0:00:08]}  Kf8 {[%clk 0:02:07]} 28. Ke2 {[%clk 0:00:09]}  Nc2 {[%clk 0:02:03]} 29. Kd3 {[%clk 0:00:09]}  Nb4+ {[%clk 0:02:03]} 30. Kc3 {[%clk 0:00:08]}  Nc6 {[%clk 0:02:02]} 31. Bc5+ {[%clk 0:00:06]}  Ke8 {[%clk 0:02:01]} 32. b4 {[%clk 0:00:05]}  h5 {[%clk 0:02:01]} 33. Kd3 {[%clk 0:00:04]}  Kd7 {[%clk 0:02:01]} 34. Kc3 {[%clk 0:00:05]}  Kc7 {[%clk 0:02:00]} 35. Bd6+ {[%clk 0:00:05]}  Kb6 {[%clk 0:02:00]} 36. Bc5+ {[%clk 0:00:05]}  Kb5 {[%clk 0:02:00]} 37. h3 {[%clk 0:00:05]}  a5 {[%clk 0:02:00]} 0-1


[Site "https://www.chess.com"]

[Event "Titled Tuesday Blitz December 20 Early 2022"]
[White "Ibarra Jerez, Jose Carlos"]
[Black "Zahid, Sanatan"]
[WhiteFideId "2226332"]
[BlackFideId "10201963"]
[WhiteElo "2563"]
[BlackElo "1930"]
[Result "0-1"]
[Round "03"]
[TimeControl "180+2"]
[Date "2022.12.20"]
[WhiteClock "0:00:12"]
[BlackClock "0:00:24"]

1. e4 {[%clk 0:03:00]}  e6 {[%clk 0:02:58]} 2. d4 {[%clk 0:03:00]}  d5 {[%clk 0:02:58]} 3. Nc3 {[%clk 0:03:00]}  Nf6 {[%clk 0:02:57]} 4. Bg5 {[%clk 0:02:59]}  Be7 {[%clk 0:02:57]} 5. e5 {[%clk 0:02:59]}  Nfd7 {[%clk 0:02:57]} 6. Bxe7 {[%clk 0:03:00]}  Qxe7 {[%clk 0:02:58]} 7. Qg4 {[%clk 0:03:00]}  O-O {[%clk 0:02:57]} 8. Bd3 {[%clk 0:03:00]}  f6 {[%clk 0:02:56]} 9. exf6 {[%clk 0:02:59]}  Nxf6 {[%clk 0:02:55]} 10. Qh4 {[%clk 0:02:59]}  Nc6 {[%clk 0:02:46]} 11. O-O-O {[%clk 0:02:50]}  h6 {[%clk 0:02:36]} 12. Nf3 {[%clk 0:02:48]}  Bd7 {[%clk 0:02:31]} 13. Rhe1 {[%clk 0:02:47]}  a6 {[%clk 0:02:26]} 14. g4 {[%clk 0:02:41]}  Nh7 {[%clk 0:02:17]} 15. Qg3 {[%clk 0:02:25]}  Ng5 {[%clk 0:02:13]} 16. Nxd5 {[%clk 0:02:15]}  Qd6 {[%clk 0:02:04]} 17. Nxg5 {[%clk 0:01:57]}  exd5 {[%clk 0:01:58]} 18. Ne6 {[%clk 0:01:43]}  Bxe6 {[%clk 0:01:29]} 19. Qxd6 {[%clk 0:01:42]}  cxd6 {[%clk 0:01:30]} 20. Rxe6 {[%clk 0:01:43]}  Rad8 {[%clk 0:01:29]} 21. Bg6 {[%clk 0:01:34]}  Rxf2 {[%clk 0:01:25]} 22. h4 {[%clk 0:01:34]}  Rf6 {[%clk 0:01:24]} 23. Rxf6 {[%clk 0:01:19]}  gxf6 {[%clk 0:01:25]} 24. c3 {[%clk 0:01:19]}  Kg7 {[%clk 0:01:23]} 25. h5 {[%clk 0:01:17]}  Rd7 {[%clk 0:01:20]} 26. Re1 {[%clk 0:01:15]}  Re7 {[%clk 0:01:20]} 27. Rf1 {[%clk 0:00:57]}  Re2 {[%clk 0:01:18]} 28. Bc2 {[%clk 0:00:57]}  Rg2 {[%clk 0:01:15]} 29. Bd1 {[%clk 0:00:55]}  Nd8 {[%clk 0:01:13]} 30. Bf3 {[%clk 0:00:55]}  Rg3 {[%clk 0:01:12]} 31. Kd2 {[%clk 0:00:51]}  b5 {[%clk 0:00:59]} 32. Ke2 {[%clk 0:00:51]}  Rh3 {[%clk 0:00:59]} 33. Bxd5 {[%clk 0:00:45]}  Nf7 {[%clk 0:00:57]} 34. Rh1 {[%clk 0:00:38]}  Rg3 {[%clk 0:00:54]} 35. Be6 {[%clk 0:00:27]}  Ng5 {[%clk 0:00:55]} 36. Bc8 {[%clk 0:00:27]}  Rg2+ {[%clk 0:00:55]} 37. Kd3 {[%clk 0:00:25]}  a5 {[%clk 0:00:52]} 38. Re1 {[%clk 0:00:22]}  Rxb2 {[%clk 0:00:51]} 39. a3 {[%clk 0:00:22]}  Rb3 {[%clk 0:00:51]} 40. Re7+ {[%clk 0:00:21]}  Kf8 {[%clk 0:00:51]} 41. Rb7 {[%clk 0:00:22]}  d5 {[%clk 0:00:47]} 42. Bd7 {[%clk 0:00:20]}  Ne4 {[%clk 0:00:46]} 43. Rxb5 {[%clk 0:00:13]}  Rxc3+ {[%clk 0:00:46]} 44. Ke2 {[%clk 0:00:14]}  Rxa3 {[%clk 0:00:47]} 45. Rb7 {[%clk 0:00:10]}  Nd6 {[%clk 0:00:38]} 46. Ra7 {[%clk 0:00:11]}  Ne4 {[%clk 0:00:24]} 47. Be6 {[%clk 0:00:10]}  Ke8 {[%clk 0:00:25]} 48. Kd1 {[%clk 0:00:07]}  Rd3+ {[%clk 0:00:25]} 49. Kc2 {[%clk 0:00:07]}  Rxd4 {[%clk 0:00:26]} 50. Rxa5 {[%clk 0:00:06]}  Ke7 {[%clk 0:00:26]} 51. Bf5 {[%clk 0:00:06]}  Nf2 {[%clk 0:00:26]} 52. Ra7+ {[%clk 0:00:07]}  Kd6 {[%clk 0:00:26]} 53. Rh7 {[%clk 0:00:08]}  Nxg4 {[%clk 0:00:26]} 54. Rh8 {[%clk 0:00:07]}  Ne3+ {[%clk 0:00:26]} 55. Kc3 {[%clk 0:00:07]}  Nxf5 {[%clk 0:00:27]} 56. Rf8 {[%clk 0:00:06]}  Ke5 {[%clk 0:00:27]} 57. Re8+ {[%clk 0:00:07]}  Kf4 {[%clk 0:00:28]} 58. Rf8 {[%clk 0:00:07]}  Rc4+ {[%clk 0:00:28]} 59. Kd3 {[%clk 0:00:07]}  Rc6 {[%clk 0:00:29]} 60. Rh8 {[%clk 0:00:07]}  Kg5 {[%clk 0:00:29]} 61. Rd8 {[%clk 0:00:08]}  d4 {[%clk 0:00:29]} 62. Ke4 {[%clk 0:00:08]}  Re6+ {[%clk 0:00:29]} 63. Kd3 {[%clk 0:00:08]}  Re3+ {[%clk 0:00:29]} 64. Kd2 {[%clk 0:00:09]}  Kxh5 {[%clk 0:00:29]} 65. Rg8 {[%clk 0:00:09]}  Rg3 {[%clk 0:00:28]} 66. Rf8 {[%clk 0:00:09]}  Kg5 {[%clk 0:00:28]} 67. Ke2 {[%clk 0:00:09]}  d3+ {[%clk 0:00:28]} 68. Kd2 {[%clk 0:00:10]}  h5 {[%clk 0:00:28]} 69. Rg8+ {[%clk 0:00:10]}  Kf4 {[%clk 0:00:28]} 70. Rd8 {[%clk 0:00:11]}  h4 {[%clk 0:00:28]} 71. Rh8 {[%clk 0:00:11]}  h3 {[%clk 0:00:28]} 72. Kc3 {[%clk 0:00:12]}  Kf3 {[%clk 0:00:27]} 73. Rh5 {[%clk 0:00:12]}  Kg2 {[%clk 0:00:24]} 0-1


[Site "https://www.chess.com"]

[Event "Titled Tuesday Blitz December 20 Early 2022"]
[White "Ilia_Jude"]
[Black "Etoilegeniale"]
[WhiteElo "2372"]
[BlackElo "2593"]
[Result "0-1"]
[Round "03"]
[TimeControl "180+2"]
[Date "2022.12.20"]
[WhiteClock "0:00:01"]
[BlackClock "0:00:41"]

1. e4 {[%clk 0:03:00]}  d6 {[%clk 0:02:52]} 2. d4 {[%clk 0:03:00]}  g6 {[%clk 0:02:53]} 3. Nc3 {[%clk 0:03:00]}  Bg7 {[%clk 0:02:53]} 4. Nf3 {[%clk 0:03:00]}  a6 {[%clk 0:02:53]} 5. a4 {[%clk 0:03:00]}  Nd7 {[%clk 0:02:52]} 6. Bc4 {[%clk 0:02:55]}  e6 {[%clk 0:02:46]} 7. O-O {[%clk 0:02:53]}  Ne7 {[%clk 0:02:46]} 8. Be3 {[%clk 0:02:52]}  O-O {[%clk 0:02:45]} 9. Ne2 {[%clk 0:02:50]}  b6 {[%clk 0:02:43]} 10. c3 {[%clk 0:02:50]}  Bb7 {[%clk 0:02:38]} 11. Bd3 {[%clk 0:02:50]}  c5 {[%clk 0:02:22]} 12. Ng3 {[%clk 0:02:49]}  Qc7 {[%clk 0:02:17]} 13. h4 {[%clk 0:02:40]}  f5 {[%clk 0:01:54]} 14. exf5 {[%clk 0:02:20]}  gxf5 {[%clk 0:01:53]} 15. Ng5 {[%clk 0:01:34]}  Qc6 {[%clk 0:01:50]} 16. N3e4 {[%clk 0:01:03]}  d5 {[%clk 0:01:27]} 17. Ng3 {[%clk 0:00:48]}  h6 {[%clk 0:00:59]} 18. Nh3 {[%clk 0:00:39]}  e5 {[%clk 0:00:55]} 19. dxe5 {[%clk 0:00:19]}  d4 {[%clk 0:00:54]} 20. Bc4+ {[%clk 0:00:19]}  Kh8 {[%clk 0:00:52]} 21. Nf4 {[%clk 0:00:10]}  dxe3 {[%clk 0:00:47]} 22. Qh5 {[%clk 0:00:01]}  Nxe5 {[%clk 0:00:41]} 0-1


[Site "https://www.chess.com"]